fUST/lending_fUST_20241111
["ID","MTS","AMOUNT","RATE_DAILY","PERIOD"]
[341874928,1731262239165,-500.0,0.00024657,2]
[341874930,1731262239175,-879.92,0.00024657,2]
[341874932,1731262239184,-12668.86,0.00024657,2]
[341874934,1731262239193,-459.88254269,0.00024657,2]
[341874936,1731262239203,-500.0,0.00024657,2]
[341874938,1731262239212,-524.20646781,0.00024657,2]
[341874940,1731262239221,-500.0,0.00024657,2]
[341874942,1731262239233,-216.1196238,0.00024657,2]
[341874945,1731262239243,-7717.12,0.00024657,2]
[341874946,1731262239252,-7717.12,0.00024657,2]
[341874948,1731262239262,-7717.12,0.00024657,2]
[341874950,1731262239271,-7717.12,0.00024657,2]
[341874952,1731262239281,-7717.12,0.00024657,2]
[341874953,1731262239291,-7717.12,0.00024657,2]
[341874955,1731262239300,-7717.12,0.00024657,2]
[341874956,1731262239310,-7717.12,0.00024657,2]
[341874957,1731262239319,-500.0,0.00024657,2]
[341874958,1731262239328,-500.0,0.00024657,2]
[341874960,1731262239337,-704.79,0.00024657,2]
[341874962,1731262239347,-500.0,0.00024657,2]
[341874964,1731262239356,-943.7,0.00024657,2]
[341874966,1731262239366,-500.0,0.00024657,2]
[341874968,1731262239375,-500.0,0.00024657,2]
[341874970,1731262239384,-500.0,0.00024657,2]
[341874971,1731262239393,-524.08,0.00024657,2]
[341874973,1731262239402,-500.0,0.00024657,2]
[341874974,1731262239413,-500.0,0.00024657,2]
[341874976,1731262239423,-500.0,0.00024657,2]
[341874978,1731262239434,-500.0,0.00024657,2]
[341874981,1731262239445,-500.0,0.00024657,2]
[341874982,1731262239454,-500.0,0.00024657,2]
[341874984,1731262239464,-250.0,0.00024657,2]
[341874986,1731262239475,-500.0,0.00024657,2]
[341874988,1731262239484,-1979.96,0.00024657,2]
[341874990,1731262239494,-1005.32,0.00024657,2]
[341874992,1731262239503,-500.0,0.00024657,2]
[341874994,1731262239513,-500.0,0.00024657,2]
[341874996,1731262239522,-500.0,0.00024657,2]
[341874998,1731262239532,-417.31885687,0.00024657,2]
[341875000,1731262239541,-2893.25,0.00024657,2]
[341875002,1731262239550,-500.0,0.00024657,2]
[341875004,1731262239559,-500.0,0.00024657,2]
[341875006,1731262239568,-500.0,0.00024657,2]
[341875008,1731262239578,-500.0,0.00024657,2]
[341875010,1731262239588,-500.0,0.00024657,2]
[341875012,1731262239597,-672.94,0.00024657,2]
[341875014,1731262239607,-943.85,0.00024657,2]
[341875016,1731262239616,-500.0,0.00024657,2]
[341875018,1731262239626,-500.0,0.00024657,2]
[341875020,1731262239635,-500.0,0.00024657,2]
[341875022,1731262239644,-500.0,0.00024657,2]
[341875024,1731262239654,-500.0,0.00024657,2]
[341875026,1731262239664,-500.0,0.00024657,2]
[341875028,1731262239672,-946.67,0.00024657,2]
[341875030,1731262239682,-508.72243777,0.00024657,2]
[341875032,1731262239691,-500.0,0.00024657,2]
[341875034,1731262239701,-500.0,0.00024657,2]
[341875036,1731262239710,-666.37,0.00024657,2]
[341875038,1731262239720,-500.0,0.00024657,2]
[341875040,1731262239731,-611.71064487,0.00024657,2]
[341875041,1731262239741,-500.0,0.00024657,2]
[341875043,1731262239749,-500.0,0.00024657,2]
[341875045,1731262239759,-500.0,0.00024657,2]
[341875047,1731262239768,-500.0,0.00024657,2]
[341875049,1731262239779,-500.0,0.00024657,2]
[341875052,1731262239788,-500.0,0.00024657,2]
[341875054,1731262239798,-888.03,0.00024657,2]
[341875056,1731262239807,-500.0,0.00024657,2]
[341875058,1731262239816,-500.0,0.00024657,2]
[341875060,1731262239825,-500.0,0.00024657,2]
[341875062,1731262239834,-500.0,0.00024657,2]
[341875064,1731262239843,-500.0,0.00024657,2]
[341875066,1731262239852,-500.0,0.00024657,2]
[341875068,1731262239861,-507.66,0.00024657,2]
[341875070,1731262239870,-500.0,0.00024657,2]
[341875072,1731262239879,-432.57033968,0.00024657,2]
[341875074,1731262239889,-393.98442997,0.00024657,2]
[341875076,1731262239897,-500.0,0.00024657,2]
[341875078,1731262239907,-500.0,0.00024657,2]
[341875080,1731262239916,-500.0,0.00024657,2]
[341875082,1731262239926,-500.0,0.00024657,2]
[341875084,1731262239935,-4319.08,0.00024657,2]
[341875086,1731262239944,-5053.75,0.00024657,2]
[341875088,1731262239954,-500.0,0.00024657,2]
[341875090,1731262239963,-726.76,0.00024657,2]
[341875092,1731262239975,-2071.51,0.00024657,2]
[341875094,1731262239984,-500.0,0.00024657,2]
[341875096,1731262239994,-500.0,0.00024657,2]
[341875098,1731262240003,-663.22,0.00024657,2]
[341875100,1731262240013,-500.0,0.00024657,2]
[341875102,1731262240021,-500.0,0.00024658,2]
[341875104,1731262240031,-500.0,0.00024658,2]
[341875106,1731262240040,-500.0,0.00024658,2]
[341875108,1731262240050,-500.0,0.00024658,2]
[341875110,1731262240059,-500.0,0.00024658,2]
[341875111,1731262240068,-500.0,0.00024658,2]
[341875112,1731262240078,-500.0,0.00024658,2]
[341875113,1731262240087,-500.0,0.00024658,2]
[341875114,1731262240096,-500.0,0.00024658,2]
[341875115,1731262240105,-500.0,0.00024658,2]
[341875116,1731262240114,-500.0,0.00024658,2]
[341875117,1731262240124,-500.0,0.00024658,2]
[341875118,1731262240133,-500.0,0.00024658,2]
[341875119,1731262240142,-500.0,0.00024658,2]
[341875120,1731262240151,-552.39866996,0.00024658,2]
[341875121,1731262240160,-500.0,0.00024658,2]
[341875122,1731262240169,-500.0,0.00024658,2]
[341875123,1731262240178,-500.0,0.00024658,2]
[341875124,1731262240187,-500.0,0.00024673,2]
[341875125,1731262240196,-4272.18511539,0.00024831,2]
[341875126,1731262240205,-405.869838,0.00024833,2]
[341875127,1731262240215,-500.0,0.00024929,2]
[341875128,1731262240225,-7717.12,0.00024929,2]
[341875129,1731262240234,-7717.12,0.00024929,2]
[341875141,1731262240394,-500.0,0.0002493,2]
[341875143,1731262240404,-199.69690478,0.0002493,2]
[341875146,1731262240414,-7717.12,0.0002493,2]
[341875148,1731262240423,-7717.12,0.0002493,2]
[341875150,1731262240432,-7717.12,0.0002493,2]
[341875152,1731262240442,-7717.12,0.0002493,2]
[341875154,1731262240451,-7717.12,0.0002493,2]
[341875156,1731262240460,-500.0,0.00024931,2]
[341875158,1731262240469,-500.0,0.00024931,2]
[341875160,1731262240481,-500.0,0.00024931,2]
[341875161,1731262240493,-500.0,0.00024931,2]
[341875163,1731262240502,-500.0,0.00024931,2]
[341875165,1731262240512,-636.44023965,0.00024931,2]
[341875167,1731262240521,-500.0,0.00024931,2]
[341875170,1731262240531,-500.0,0.00024931,2]
[341875172,1731262240541,-500.0,0.00024931,2]
[341875173,1731262240550,-500.0,0.00024931,2]
[341875175,1731262240559,-500.0,0.00024931,2]
[341875177,1731262240568,-500.0,0.00024931,2]
[341875179,1731262240577,-500.0,0.00024931,2]
[341875181,1731262240587,-500.0,0.00024931,2]
[341875183,1731262240596,-500.0,0.00024931,2]
[341875185,1731262240606,-500.0,0.00024931,2]
[341875187,1731262240618,-500.0,0.00024931,2]
[341875189,1731262240627,-500.0,0.00024931,2]
[341875191,1731262240636,-500.0,0.00024931,2]
[341875193,1731262240646,-500.0,0.00024931,2]
[341875195,1731262240655,-500.0,0.00024931,2]
[341875197,1731262240664,-500.0,0.00024931,2]
[341875199,1731262240673,-500.0,0.00024931,2]
[341875202,1731262240682,-500.0,0.00024931,2]
[341875204,1731262240692,-598.59,0.00024931,2]
[341875206,1731262240703,-500.0,0.00024931,2]
[341875207,1731262240712,-500.0,0.00024931,2]
[341875209,1731262240721,-500.0,0.00024931,2]
[341875211,1731262240732,-500.0,0.00024931,2]
[341875214,1731262240744,-500.0,0.00024931,2]
[341875215,1731262240753,-500.0,0.00024931,2]
[341875218,1731262240763,-500.0,0.00024931,2]
[341875220,1731262240772,-500.0,0.00024931,2]
[341875221,1731262240781,-500.0,0.00024931,2]
[341875223,1731262240790,-500.0,0.00024931,2]
[341875226,1731262240800,-1539.34,0.00024931,2]
[341875227,1731262240809,-174.57829496,0.00024931,2]
[341875229,1731262240818,-500.0,0.00024931,2]
[341875231,1731262240827,-500.0,0.00024931,2]
[341875233,1731262240836,-500.0,0.00024931,2]
[341875235,1731262240845,-500.0,0.00024931,2]
[341875237,1731262240855,-500.0,0.00024931,2]
[341875239,1731262240863,-500.0,0.00024931,2]
[341875241,1731262240872,-521.77,0.00024931,2]
[341875243,1731262240881,-500.0,0.00024931,2]
[341875245,1731262240891,-540.26,0.00024931,2]
[341875247,1731262240900,-623.72,0.00024931,2]
[341875249,1731262240909,-500.0,0.00024931,2]
[341875251,1731262240918,-1506.19,0.00024931,2]
[341875253,1731262240927,-500.0,0.00024931,2]
[341875255,1731262240936,-343.8919319,0.00024931,2]
[341875258,1731262240946,-500.0,0.00024931,2]
[341875260,1731262240955,-500.0,0.00024931,2]
[341875262,1731262240964,-500.0,0.00024931,2]
[341875264,1731262240975,-500.0,0.00024931,2]
[341875266,1731262240984,-500.0,0.00024931,2]
[341875268,1731262240993,-500.0,0.00024931,2]
[341875269,1731262241002,-500.0,0.00024931,2]
[341875272,1731262241012,-951.78,0.00024931,2]
[341875274,1731262241021,-500.0,0.00024931,2]
[341875276,1731262241030,-500.0,0.00024931,2]
[341875278,1731262241039,-500.0,0.00024931,2]
[341875280,1731262241049,-500.0,0.00024931,2]
[341875282,1731262241058,-500.0,0.00024931,2]
[341875284,1731262241068,-500.0,0.00024931,2]
[341875286,1731262241077,-500.0,0.00024931,2]
[341875288,1731262241086,-578.86,0.00024931,2]
[341875290,1731262241096,-500.0,0.00024931,2]
[341875292,1731262241105,-500.0,0.00024931,2]
[341875294,1731262241114,-500.0,0.00024931,2]
[341875296,1731262241122,-500.0,0.00024931,2]
[341875298,1731262241131,-500.0,0.00024931,2]
[341875300,1731262241141,-500.0,0.00024931,2]
[341875302,1731262241149,-500.0,0.00024931,2]
[341875304,1731262241158,-414.05229471,0.00024931,2]
[341875306,1731262241168,-500.0,0.00024931,2]
[341875308,1731262241177,-500.0,0.00024931,2]
[341875310,1731262241187,-500.0,0.00024931,2]
[341875312,1731262241196,-503.88167079,0.00024931,2]
[341875314,1731262241205,-500.0,0.00024931,2]
[341875316,1731262241214,-512.19,0.00024931,2]
[341875318,1731262241224,-507.95915238,0.00024931,2]
[341875320,1731262241233,-500.0,0.00024931,2]
[341875322,1731262241243,-500.0,0.00024931,2]
[341875324,1731262241252,-500.0,0.00024931,2]
[341875326,1731262241261,-500.0,0.00024931,2]
[341875328,1731262241270,-879.92,0.00024931,2]
[341875330,1731262241280,-12668.86,0.00024931,2]
[341875332,1731262241290,-500.0,0.00024931,2]
[341875334,1731262241299,-500.0,0.00024931,2]
[341875336,1731262241308,-367.98818087,0.00024931,2]
[341875338,1731262241318,-500.0,0.00024931,2]
[341875340,1731262241327,-704.79,0.00024931,2]
[341875342,1731262241336,-500.0,0.00024931,2]
[341875344,1731262241345,-943.7,0.00024931,2]
[341875346,1731262241355,-500.0,0.00024931,2]
[341875348,1731262241364,-500.0,0.00024931,2]
[341875350,1731262241373,-524.08,0.00024931,2]
[341875352,1731262241382,-500.0,0.00024931,2]
[341875354,1731262241392,-500.0,0.00024931,2]
[341875356,1731262241401,-500.0,0.00024931,2]
[341875358,1731262241410,-500.0,0.00024931,2]
[341875360,1731262241420,-500.0,0.00024931,2]
[341875362,1731262241429,-500.0,0.00024931,2]
[341875364,1731262241438,-500.0,0.00024931,2]
[341875366,1731262241447,-1979.96,0.00024931,2]
[341875368,1731262241456,-1005.32,0.00024931,2]
[341875370,1731262241465,-500.0,0.00024931,2]
[341875372,1731262241475,-500.0,0.00024931,2]
[341875374,1731262241485,-2893.25,0.00024931,2]
[341875376,1731262241494,-502.84804866,0.00024931,2]
[341875378,1731262241503,-500.0,0.00024931,2]
[341875379,1731262241512,-501.40095141,0.00024931,2]
[341875381,1731262241521,-672.94,0.00024931,2]
[341875384,1731262241530,-943.85,0.00024931,2]
[341875386,1731262241540,-254.54424478,0.00024931,2]
[341875387,1731262241549,-500.0,0.00024931,2]
[341875389,1731262241558,-500.0,0.00024931,2]
[341875391,1731262241568,-946.67,0.00024931,2]
[341875394,1731262241577,-500.0,0.00024931,2]
[341875396,1731262241586,-500.0,0.00024931,2]
[341875398,1731262241595,-666.37,0.00024931,2]
[341875400,1731262241605,-500.0,0.00024931,2]
[341875401,1731262241614,-500.0,0.00024931,2]
[341875403,1731262241626,-500.0,0.00024931,2]
[341875405,1731262241635,-500.0,0.00024931,2]
[341875408,1731262241645,-500.0,0.00024931,2]
[341875410,1731262241655,-888.03,0.00024931,2]
[341875411,1731262241664,-500.0,0.00024931,2]
[341875413,1731262241674,-500.0,0.00024931,2]
[341875416,1731262241683,-500.0,0.00024931,2]
[341875418,1731262241692,-507.66,0.00024931,2]
[341875420,1731262241702,-500.0,0.00024931,2]
[341875422,1731262241712,-500.0,0.00024931,2]
[341875424,1731262241721,-500.0,0.00024931,2]
[341875426,1731262241732,-500.0,0.00024931,2]
[341875427,1731262241741,-4319.08,0.00024931,2]
[341875430,1731262241750,-5053.75,0.00024931,2]
[341875431,1731262241759,-500.0,0.00024931,2]
[341875434,1731262241768,-726.76,0.00024931,2]
[341875436,1731262241777,-2071.51,0.00024931,2]
[341875437,1731262241786,-506.64817434,0.00024931,2]
[341875440,1731262241796,-500.0,0.00024931,2]
[341875441,1731262241806,-663.22,0.00024931,2]
[341875443,1731262241816,-500.0,0.00024931,2]
[341875445,1731262241825,-500.0,0.00024973,2]
[341875447,1731262241834,-500.0,0.00024973,2]
[341875449,1731262241843,-500.0,0.00024973,2]
[341875452,1731262241852,-155.0,0.00025,2]
[341875454,1731262241861,-2075.82803374,0.00025051,2]
[341875456,1731262241870,-153.0,0.00025142,2]
[341875458,1731262241879,-153.0,0.00025142,2]
[341875460,1731262241888,-153.0,0.00025143,2]
[341875461,1731262241897,-153.0,0.00025143,2]
[341875464,1731262241906,-153.0,0.00025143,2]
[341875466,1731262241915,-153.0,0.00025143,2]
[341875468,1731262241924,-153.0,0.00025143,2]
[341875470,1731262241933,-153.0,0.00025143,2]
[341875472,1731262241942,-153.0,0.00025143,2]
[341875474,1731262241951,-153.0,0.00025143,2]
[341875476,1731262241960,-153.0,0.00025147,2]
[341875477,1731262241968,-153.0,0.00025147,2]
[341875479,1731262241978,-153.0,0.00025147,2]
[341875482,1731262241988,-153.0,0.00025147,2]
[341875483,1731262241997,-153.0,0.00025147,2]
[341875486,1731262242007,-2812.06451252,0.00025182,2]
[341875488,1731262242016,-7717.12,0.00025203,2]
[341875490,1731262242025,-7717.12,0.00025204,2]
[341875492,1731262242035,-7717.12,0.00025204,2]
[341875494,1731262242043,-7717.12,0.00025204,2]
[341875496,1731262242053,-7717.12,0.00025204,2]
[341875498,1731262242062,-7717.12,0.00025204,2]
[341875499,1731262242071,-7717.12,0.00025204,2]
[341875502,1731262242080,-7717.12,0.00025204,2]
[341875503,1731262242089,-7717.34306599,0.00025204,2]
[341875506,1731262242099,-500.0,0.00025205,2]
[341875507,1731262242108,-500.0,0.00025205,2]
[341875510,1731262242117,-500.0,0.00025205,2]
[341875511,1731262242127,-500.0,0.00025205,2]
[341875514,1731262242136,-500.0,0.00025205,2]
[341875516,1731262242145,-612.92,0.00025205,2]
[341875518,1731262242154,-500.0,0.00025205,2]
[341875519,1731262242163,-328.09861926,0.00025205,2]
[341875522,1731262242173,-500.0,0.00025205,2]
[341875524,1731262242183,-500.0,0.00025205,2]
[341875525,1731262242192,-500.0,0.00025205,2]
[341875527,1731262242202,-500.0,0.00025205,2]
[341875530,1731262242211,-500.0,0.00025205,2]
[341875532,1731262242220,-500.0,0.00025205,2]
[341875533,1731262242235,-500.0,0.00025205,2]
[341875535,1731262242244,-500.0,0.00025205,2]
[341875537,1731262242254,-500.0,0.00025205,2]
[341875539,1731262242263,-598.59,0.00025205,2]
[341875541,1731262242272,-523.25185545,0.00025205,2]
[341875543,1731262242282,-533.13750072,0.00025205,2]
[341875546,1731262242293,-500.0,0.00025205,2]
[341875548,1731262242302,-500.0,0.00025205,2]
[341875549,1731262242312,-500.0,0.00025205,2]
[341875552,1731262242321,-500.0,0.00025205,2]
[341875554,1731262242331,-500.0,0.00025205,2]
[341875557,1731262242340,-500.0,0.00025205,2]
[341875559,1731262242351,-500.0,0.00025205,2]
[341875561,1731262242360,-500.0,0.00025205,2]
[341875563,1731262242369,-1539.34,0.00025205,2]
[341875565,1731262242379,-500.0,0.00025205,2]
[341875567,1731262242387,-500.0,0.00025205,2]
[341875568,1731262242398,-500.0,0.00025205,2]
[341875570,1731262242407,-500.0,0.00025205,2]
[341875572,1731262242416,-500.0,0.00025205,2]
[341875575,1731262242426,-521.77,0.00025205,2]
[341875577,1731262242435,-500.0,0.00025205,2]
[341875579,1731262242445,-623.72,0.00025205,2]
[341875581,1731262242454,-546.56429739,0.00025205,2]
[341875583,1731262242464,-1506.19,0.00025205,2]
[341875585,1731262242477,-500.0,0.00025205,2]
[341875587,1731262242486,-500.0,0.00025205,2]
[341875589,1731262242495,-500.0,0.00025205,2]
[341875591,1731262242503,-500.0,0.00025205,2]
[341875593,1731262242512,-500.0,0.00025205,2]
[341875595,1731262242521,-524.54999841,0.00025205,2]
[341875597,1731262242531,-500.0,0.00025205,2]
[341875599,1731262242540,-500.0,0.00025205,2]
[341875601,1731262242549,-951.78,0.00025205,2]
[341875603,1731262242558,-500.0,0.00025205,2]
[341875605,1731262242567,-500.0,0.00025205,2]
[341875607,1731262242576,-500.0,0.00025205,2]
[341875609,1731262242585,-500.0,0.00025205,2]
[341875611,1731262242594,-500.0,0.00025205,2]
[341875613,1731262242604,-500.0,0.00025205,2]
[341875615,1731262242613,-578.86,0.00025205,2]
[341875617,1731262242623,-623.55505419,0.00025205,2]
[341875619,1731262242632,-500.0,0.00025205,2]
[341875621,1731262242641,-500.0,0.00025205,2]
[341875623,1731262242652,-500.0,0.00025205,2]
[341875625,1731262242661,-500.0,0.00025205,2]
[341875627,1731262242670,-500.0,0.00025205,2]
[341875629,1731262242679,-500.0,0.00025205,2]
[341875631,1731262242687,-500.0,0.00025205,2]
[341875633,1731262242698,-500.0,0.00025205,2]
[341875635,1731262242707,-500.0,0.00025205,2]
[341875637,1731262242717,-500.0,0.00025205,2]
[341875639,1731262242728,-512.19,0.00025205,2]
[341875641,1731262242737,-500.0,0.00025205,2]
[341875643,1731262242745,-500.0,0.00025205,2]
[341875645,1731262242754,-313.05674921,0.00025205,2]
[341875647,1731262242763,-500.0,0.00025205,2]
[341875649,1731262242772,-879.92,0.00025205,2]
[341875651,1731262242781,-12668.86,0.00025205,2]
[341875653,1731262242792,-500.0,0.00025205,2]
[341875655,1731262242802,-500.0,0.00025205,2]
[341875657,1731262242811,-704.79,0.00025205,2]
[341875659,1731262242820,-500.0,0.00025205,2]
[341875661,1731262242829,-943.7,0.00025205,2]
[341875662,1731262242838,-500.0,0.00025205,2]
[341875664,1731262242849,-500.0,0.00025205,2]
[341875667,1731262242858,-524.08,0.00025205,2]
[341875669,1731262242867,-500.0,0.00025205,2]
[341875671,1731262242876,-500.0,0.00025205,2]
[341875673,1731262242885,-500.0,0.00025205,2]
[341875675,1731262242894,-500.0,0.00025205,2]
[341875677,1731262242903,-500.0,0.00025205,2]
[341875679,1731262242912,-500.0,0.00025205,2]
[341875680,1731262242921,-1979.96,0.00025205,2]
[341875683,1731262242931,-1005.32,0.00025205,2]
[341875685,1731262242940,-500.0,0.00025205,2]
[341875686,1731262242951,-2893.25,0.00025205,2]
[341875689,1731262242962,-500.0,0.00025205,2]
[341875691,1731262242971,-672.94,0.00025205,2]
[341875693,1731262242984,-943.85,0.00025205,2]
[341875695,1731262242993,-500.0,0.00025205,2]
[341875697,1731262243002,-946.67,0.00025205,2]
[341875698,1731262243011,-500.0,0.00025205,2]
[341875700,1731262243021,-500.0,0.00025205,2]
[341875702,1731262243030,-666.37,0.00025205,2]
[341875705,1731262243040,-573.5697551,0.00025205,2]
[341875707,1731262243051,-500.0,0.00025205,2]
[341875709,1731262243061,-500.0,0.00025205,2]
[341875711,1731262243071,-500.0,0.00025205,2]
[341875712,1731262243082,-546.20647773,0.00025205,2]
[341875715,1731262243092,-888.03,0.00025205,2]
[341875716,1731262243101,-500.0,0.00025205,2]
[341875718,1731262243111,-500.0,0.00025205,2]
[341875721,1731262243121,-253.5337176,0.00025205,2]
[341875723,1731262243130,-507.66,0.00025205,2]
[341875725,1731262243139,-500.0,0.00025205,2]
[341875727,1731262243148,-500.0,0.00025205,2]
[341875729,1731262243157,-500.0,0.00025205,2]
[341875731,1731262243167,-4319.08,0.00025205,2]
[341875733,1731262243178,-5053.75,0.00025205,2]
[341875735,1731262243187,-500.0,0.00025205,2]
[341875737,1731262243196,-726.76,0.00025205,2]
[341875739,1731262243205,-2071.51,0.00025205,2]
[341875741,1731262243215,-500.0,0.00025205,2]
[341875743,1731262243230,-663.22,0.00025205,2]
[341875745,1731262243239,-500.0,0.00025205,2]
[341875747,1731262243248,-483.28147218,0.00025254,2]
[341875749,1731262243258,-205.06177153,0.00025273,2]
[341875751,1731262243267,-500.0,0.00025273,2]
[341875753,1731262243276,-500.0,0.00025273,2]
[341875755,1731262243285,-173.79557726,0.00025273,2]
[341875757,1731262243294,-501.43262596,0.00025273,2]
[341875759,1731262243303,-500.0,0.00025273,2]
[341875761,1731262243312,-500.0,0.00025273,2]
[341875762,1731262243322,-500.0,0.00025273,2]
[341875765,1731262243331,-500.0,0.00025273,2]
[341875767,1731262243340,-502.93494812,0.00025273,2]
[341875768,1731262243350,-1129.5870743,0.00025379,2]
[341875772,1731262243360,-500.0,0.00025479,2]
[341875775,1731262243369,-500.0,0.00025479,2]
[341875778,1731262243378,-500.0,0.00025479,2]
[341875781,1731262243387,-500.0,0.00025479,2]
[341875784,1731262243398,-500.0,0.00025479,2]
[341875786,1731262243407,-500.0,0.00025479,2]
[341875788,1731262243416,-500.0,0.00025479,2]
[341875790,1731262243425,-500.0,0.00025479,2]
[341875792,1731262243434,-500.0,0.00025479,2]
[341875794,1731262243444,-500.0,0.00025479,2]
[341875796,1731262243453,-500.0,0.00025479,2]
[341875798,1731262243462,-598.59,0.00025479,2]
[341875800,1731262243471,-500.0,0.00025479,2]
[341875802,1731262243483,-500.0,0.00025479,2]
[341875804,1731262243492,-500.0,0.00025479,2]
[341875806,1731262243501,-500.0,0.00025479,2]
[341875808,1731262243510,-500.0,0.00025479,2]
[341875810,1731262243520,-159.79135289,0.00025479,2]
[341875812,1731262243530,-1539.34,0.00025479,2]
[341875828,1731262243659,-500.0,0.00025479,2]
[341875830,1731262243668,-500.0,0.00025479,2]
[341875832,1731262243678,-500.0,0.00025479,2]
[341875834,1731262243686,-500.0,0.00025479,2]
[341875836,1731262243696,-500.0,0.00025479,2]
[341875838,1731262243705,-521.77,0.00025479,2]
[341875840,1731262243715,-623.72,0.00025479,2]
[341875842,1731262243724,-1506.19,0.00025479,2]
[341875843,1731262243737,-500.0,0.00025479,2]
[341875846,1731262243751,-500.0,0.00025479,2]
[341875847,1731262243760,-500.0,0.00025479,2]
[341875849,1731262243769,-151.0,0.00025479,7]
[341875852,1731262243779,-164.043212,0.00025479,7]
[341875854,1731262243788,-374.99876,0.00025479,7]
[341875856,1731262243798,-500.0,0.00025479,2]
[341875858,1731262243807,-500.0,0.00025479,2]
[341875860,1731262243816,-951.78,0.00025479,2]
[341875862,1731262243825,-164.043212,0.00025479,7]
[341875864,1731262243834,-374.99876,0.00025479,7]
[341875866,1731262243843,-151.0,0.00025479,7]
[341875868,1731262243853,-500.0,0.00025479,2]
[341875870,1731262243866,-500.0,0.00025479,2]
[341875872,1731262243889,-500.0,0.00025479,2]
[341875874,1731262243909,-500.0,0.00025479,2]
[341875876,1731262243932,-578.86,0.00025479,2]
[341875878,1731262243960,-500.0,0.00025479,2]
[341875880,1731262243988,-500.0,0.00025479,2]
[341875882,1731262244011,-500.0,0.00025479,2]
[341875884,1731262244034,-500.0,0.00025479,2]
[341875886,1731262244056,-500.0,0.00025479,2]
[341875888,1731262244080,-965.44425,0.00025479,7]
[341875890,1731262244102,-500.0,0.00025479,2]
[341875892,1731262244125,-965.44425,0.00025479,7]
[341875894,1731262244143,-500.0,0.00025479,2]
[341875896,1731262244152,-321.45906707,0.00025479,2]
[341875898,1731262244161,-500.0,0.00025479,2]
[341875900,1731262244170,-512.19,0.00025479,2]
[341875902,1731262244179,-500.0,0.00025479,2]
[341875904,1731262244188,-500.0,0.00025479,2]
[341875906,1731262244197,-584.97612012,0.00025479,2]
[341875908,1731262244207,-879.92,0.00025479,2]
[341875910,1731262244216,-12668.86,0.00025479,2]
[341875912,1731262244224,-500.0,0.00025479,2]
[341875914,1731262244242,-500.0,0.00025479,2]
[341875915,1731262244251,-151.0,0.00025479,7]
[341875917,1731262244260,-704.79,0.00025479,2]
[341875919,1731262244269,-500.0,0.00025479,2]
[341875921,1731262244277,-943.7,0.00025479,2]
[341875923,1731262244286,-500.0,0.00025479,2]
[341875926,1731262244297,-957.50371,0.00025479,7]
[341875928,1731262244306,-500.0,0.00025479,2]
[341875930,1731262244314,-524.08,0.00025479,2]
[341875932,1731262244324,-957.50371,0.00025479,7]